[Event "Early-Titled-Tuesday-Blitz-April-16-2024"]
[Site "Chess.com"]
[Date "2024.04.16"]
[Round "1"]
[White "AlessiaSanteramo"]
[Black "ArmanGhevondyanchess"]
[Result "0-1"]
[WhiteElo "2313"]
[BlackElo "2619"]
[TimeControl "180+1"]
[EndTime "8:08:03 PDT"]
[Termination "ArmanGhevondyanchess won by resignation"]

1. e4 {[%clk 0:02:47.7]} 1... c5 {[%clk 0:02:59.3]} 2. Nf3 {[%clk 0:02:45.1]}
2... Nc6 {[%clk 0:02:55]} 3. Bb5 {[%clk 0:02:41.4]} 3... g6 {[%clk 0:02:53.8]}
4. Bxc6 {[%clk 0:02:40.2]} 4... bxc6 {[%clk 0:02:54.3]} 5. O-O {[%clk
0:02:38.9]} 5... Bg7 {[%clk 0:02:53.7]} 6. Re1 {[%clk 0:02:38.4]} 6... Nh6
{[%clk 0:02:49.3]} 7. c3 {[%clk 0:02:35.1]} 7... O-O {[%clk 0:02:49]} 8. d4
{[%clk 0:02:35.4]} 8... cxd4 {[%clk 0:02:49.9]} 9. cxd4 {[%clk 0:02:36.3]} 9...
d6 {[%clk 0:02:50.1]} 10. Nc3 {[%clk 0:02:35.8]} 10... f6 {[%clk 0:02:49.8]} 11.
Be3 {[%clk 0:02:27.2]} 11... Rb8 {[%clk 0:02:44.1]} 12. Qc2 {[%clk 0:02:23.6]}
12... Bd7 {[%clk 0:02:40.6]} 13. Rad1 {[%clk 0:02:19.9]} 13... Qa5 {[%clk
0:02:39.9]} 14. b3 {[%clk 0:02:17]} 14... Qh5 {[%clk 0:02:38.2]} 15. h3 {[%clk
0:02:14.9]} 15... Bxh3 {[%clk 0:02:35.2]} 16. Ne2 {[%clk 0:02:03.6]} 16... Bd7
{[%clk 0:02:28.1]} 17. Nf4 {[%clk 0:01:43.1]} 17... Qa5 {[%clk 0:02:22.3]} 18.
Qc1 {[%clk 0:01:36.5]} 18... Ng4 {[%clk 0:02:20.6]} 19. Qc4+ {[%clk 0:01:25]}
19... Kh8 {[%clk 0:02:16.7]} 20. Re2 {[%clk 0:00:52.1]} 20... Nxe3 {[%clk
0:02:12.1]} 21. fxe3 {[%clk 0:00:53]} 21... Rb4 {[%clk 0:02:05.1]} 22. Qc2
{[%clk 0:00:51.3]} 22... Qa6 {[%clk 0:01:56.7]} 23. Nd3 {[%clk 0:00:49.2]} 23...
Rb5 {[%clk 0:01:54.7]} 24. e5 {[%clk 0:00:47.7]} 24... fxe5 {[%clk 0:01:49.5]}
25. dxe5 {[%clk 0:00:47.4]} 25... Bg4 {[%clk 0:01:48.6]} 26. exd6 {[%clk
0:00:44.2]} 26... exd6 {[%clk 0:01:44.6]} 27. Rf2 {[%clk 0:00:38.1]} 27... Rbf5
{[%clk 0:01:40.9]} 28. Nf4 {[%clk 0:00:31.7]} 28... Bxf3 {[%clk 0:01:20.8]} 29.
Rxf3 {[%clk 0:00:29.4]} 29... Be5 {[%clk 0:01:12.8]} 30. Rdf1 {[%clk 0:00:23.5]}
30... g5 {[%clk 0:01:10.4]} 31. Ne6 {[%clk 0:00:18.2]} 31... Rxf3 {[%clk
0:01:06.9]} 32. Rxf3 {[%clk 0:00:18.5]} 32... Rxf3 {[%clk 0:01:05.1]} 33. gxf3
{[%clk 0:00:19.1]} 33... Qa5 {[%clk 0:00:53.4]} 34. Nxg5 {[%clk 0:00:12.3]}
34... Qe1+ {[%clk 0:00:52.2]} 35. Kg2 {[%clk 0:00:12.8]} 35... Qg3+ {[%clk
0:00:51.3]} 36. Kf1 {[%clk 0:00:11.3]} 36... Qxg5 {[%clk 0:00:52.2]} 37. Qxc6
{[%clk 0:00:10.9]} 37... Qe7 {[%clk 0:00:38.4]} 38. Qc8+ {[%clk 0:00:09.7]}
38... Kg7 {[%clk 0:00:37.9]} 39. Qg4+ {[%clk 0:00:10.3]} 39... Kf7 {[%clk
0:00:37.8]} 40. Ke2 {[%clk 0:00:10.7]} 40... Bf6 {[%clk 0:00:34.1]} 41. Qh5+
{[%clk 0:00:10.8]} 41... Kg7 {[%clk 0:00:33.8]} 42. Qg4+ {[%clk 0:00:11]} 42...
Kf8 {[%clk 0:00:32.3]} 43. Qc8+ {[%clk 0:00:10.4]} 43... Kf7 {[%clk 0:00:29.1]}
44. Qc4+ {[%clk 0:00:10.4]} 44... Qe6 {[%clk 0:00:22]} 45. Qc7+ {[%clk
0:00:10.4]} 45... Be7 {[%clk 0:00:22.5]} 46. Qxa7 {[%clk 0:00:10.3]} 46... h5
{[%clk 0:00:22.8]} 47. Qd4 {[%clk 0:00:06.6]} 47... h4 {[%clk 0:00:22.8]} 48.
Qf4+ {[%clk 0:00:04.3]} 48... Ke8 {[%clk 0:00:22.7]} 49. a4 {[%clk 0:00:03.9]}
49... h3 {[%clk 0:00:21.7]} 50. a5 {[%clk 0:00:03.6]} 50... Qxb3 {[%clk
0:00:20.1]} 51. Kf2 {[%clk 0:00:04.3]} 51... Qa2+ {[%clk 0:00:18.1]} 52. Kg3
{[%clk 0:00:04.3]} 52... Qxa5 {[%clk 0:00:19]} 53. Kxh3 {[%clk 0:00:04.5]} 53...
Kd7 {[%clk 0:00:18.5]} 54. Qg4+ {[%clk 0:00:05.4]} 54... Kc7 {[%clk 0:00:18.9]}
55. Kg3 {[%clk 0:00:06]} 55... d5 {[%clk 0:00:18.3]} 56. Qf4+ {[%clk 0:00:06.1]}
56... Bd6 {[%clk 0:00:18.8]} 0-1

[Event "Early-Titled-Tuesday-Blitz-April-16-2024"]
[Site "Chess.com"]
[Date "2024.04.16"]
[Round "1"]
[White "TERMINATOR_PC"]
[Black "JiiHart"]
[Result "1-0"]
[WhiteElo "2575"]
[BlackElo "2162"]
[TimeControl "180+1"]
[EndTime "8:08:06 PDT"]
[Termination "TERMINATOR_PC won by resignation"]

1. e4 {[%clk 0:02:44.6]} 1... c5 {[%clk 0:02:59.2]} 2. Nf3 {[%clk 0:02:44.9]}
2... Nc6 {[%clk 0:02:59.4]} 3. d4 {[%clk 0:02:45.6]} 3... cxd4 {[%clk
0:02:59.7]} 4. Nxd4 {[%clk 0:02:46.5]} 4... Nf6 {[%clk 0:03:00.1]} 5. Nc3 {[%clk
0:02:47]} 5... d6 {[%clk 0:03:00.5]} 6. Bg5 {[%clk 0:02:47.5]} 6... Bd7 {[%clk
0:02:59.8]} 7. Qd3 {[%clk 0:02:47.6]} 7... a6 {[%clk 0:02:59.1]} 8. O-O-O {[%clk
0:02:47.4]} 8... e6 {[%clk 0:02:54.7]} 9. f4 {[%clk 0:02:47.1]} 9... h6 {[%clk
0:02:38.2]} 10. Bh4 {[%clk 0:02:42.8]} 10... g5 {[%clk 0:02:19.6]} 11. fxg5
{[%clk 0:02:42.8]} 11... Ng4 {[%clk 0:02:19.6]} 12. Kb1 {[%clk 0:02:37.9]} 12...
hxg5 {[%clk 0:02:11.9]} 13. Bg3 {[%clk 0:02:21.8]} 13... Nce5 {[%clk 0:02:00.9]}
14. Qd2 {[%clk 0:02:20.4]} 14... b5 {[%clk 0:01:52.8]} 15. Nf3 {[%clk
0:02:04.9]} 15... f6 {[%clk 0:01:18.6]} 16. Bd3 {[%clk 0:01:54.9]} 16... Be7
{[%clk 0:01:11.4]} 17. Ne2 {[%clk 0:01:53.6]} 17... Rc8 {[%clk 0:01:02.3]} 18.
Ned4 {[%clk 0:01:51.2]} 18... Qb6 {[%clk 0:00:36.9]} 19. Be2 {[%clk 0:01:44.7]}
19... Nc4 {[%clk 0:00:29.5]} 20. Bxc4 {[%clk 0:01:43.8]} 20... bxc4 {[%clk
0:00:26.9]} 21. Qc3 {[%clk 0:01:43.1]} 21... Ne5 {[%clk 0:00:22.3]} 22. Ne2
{[%clk 0:01:17.1]} 22... Rb8 {[%clk 0:00:15]} 23. Rhf1 {[%clk 0:01:14]} 23...
Qb4 {[%clk 0:00:15]} 24. Qxb4 {[%clk 0:01:09.8]} 24... Rxb4 {[%clk 0:00:15.2]}
25. h3 {[%clk 0:00:55.6]} 25... Bc8 {[%clk 0:00:12.2]} 26. Nc3 {[%clk
0:00:53.6]} 26... O-O {[%clk 0:00:11.7]} 27. Bf2 {[%clk 0:00:37]} 27... Rb8
{[%clk 0:00:10.4]} 28. Ba7 {[%clk 0:00:34.4]} 28... Ra8 {[%clk 0:00:09.3]} 29.
Be3 {[%clk 0:00:33.7]} 29... Bb7 {[%clk 0:00:09.5]} 30. Nxe5 {[%clk 0:00:29.3]}
30... fxe5 {[%clk 0:00:09.2]} 31. Rfe1 {[%clk 0:00:24.9]} 31... Rf7 {[%clk
0:00:09]} 32. Rf1 {[%clk 0:00:19.3]} 32... Raf8 {[%clk 0:00:09]} 33. Rxf7 {[%clk
0:00:19]} 33... Rxf7 {[%clk 0:00:09.9]} 34. Kc1 {[%clk 0:00:18.9]} 34... Kg7
{[%clk 0:00:10.2]} 35. b3 {[%clk 0:00:14]} 35... Kg6 {[%clk 0:00:10.5]} 36. bxc4
{[%clk 0:00:13.4]} 36... g4 {[%clk 0:00:09.1]} 37. hxg4 {[%clk 0:00:13.4]} 37...
Rh7 {[%clk 0:00:09.4]} 38. c5 {[%clk 0:00:11]} 38... dxc5 {[%clk 0:00:08.8]} 39.
Rd7 {[%clk 0:00:11.1]} 39... Bc6 {[%clk 0:00:08.7]} 40. Rc7 {[%clk 0:00:11.7]}
40... Bb5 {[%clk 0:00:08.9]} 41. Nxb5 {[%clk 0:00:10.2]} 41... axb5 {[%clk
0:00:09.6]} 42. Kb2 {[%clk 0:00:10.7]} 42... Rh2 {[%clk 0:00:09.3]} 43. Rxe7
{[%clk 0:00:10.7]} 43... Rxg2 {[%clk 0:00:08.9]} 44. Rxe6+ {[%clk 0:00:11.2]}
44... Kf7 {[%clk 0:00:08.9]} 45. Rxe5 {[%clk 0:00:11.7]} 45... Rxg4 {[%clk
0:00:09.1]} 46. Bxc5 {[%clk 0:00:12.2]} 46... Kf6 {[%clk 0:00:08.5]} 47. Bd4
{[%clk 0:00:12.8]} 47... Kf7 {[%clk 0:00:08.5]} 48. Rxb5 {[%clk 0:00:12.9]}
48... Rxe4 {[%clk 0:00:08.5]} 49. Bc3 {[%clk 0:00:13.5]} 49... Ke6 {[%clk
0:00:08.6]} 50. Rb4 {[%clk 0:00:13.9]} 50... Re2 {[%clk 0:00:08.2]} 51. a4
{[%clk 0:00:14.4]} 51... Kd7 {[%clk 0:00:08.5]} 52. a5 {[%clk 0:00:14.9]} 52...
Kc6 {[%clk 0:00:08.9]} 53. a6 {[%clk 0:00:15.1]} 53... Re7 {[%clk 0:00:09]} 54.
Bd4 {[%clk 0:00:14.1]} 54... Re8 {[%clk 0:00:08.8]} 55. a7 {[%clk 0:00:14.4]}
55... Ra8 {[%clk 0:00:08.9]} 56. Rb8 {[%clk 0:00:13.7]} 56... Rxa7 {[%clk
0:00:09.2]} 57. Bxa7 {[%clk 0:00:13.2]} 57... Kc7 {[%clk 0:00:10.1]} 58. Rb6
{[%clk 0:00:12.6]} 58... Kc8 {[%clk 0:00:09.8]} 59. Kc3 {[%clk 0:00:13.2]} 1-0

[Event "Early-Titled-Tuesday-Blitz-April-16-2024"]
[Site "Chess.com"]
[Date "2024.04.16"]
[Round "1"]
[White "dontcatchmeifyoucant"]
[Black "Vesper2018"]
[Result "0-1"]
[WhiteElo "2044"]
[BlackElo "2561"]
[TimeControl "180+1"]
[EndTime "8:08:07 PDT"]
[Termination "Vesper2018 won on time"]

1. e4 {[%clk 0:02:59.7]} 1... c5 {[%clk 0:02:59.9]} 2. Nf3 {[%clk 0:02:59.1]}
2... d6 {[%clk 0:02:59.8]} 3. d4 {[%clk 0:02:59.5]} 3... cxd4 {[%clk 0:03:00]}
4. Nxd4 {[%clk 0:03:00.4]} 4... Nf6 {[%clk 0:03:00.3]} 5. f3 {[%clk 0:03:00.7]}
5... e5 {[%clk 0:02:56.5]} 6. Nb3 {[%clk 0:03:00.9]} 6... Be7 {[%clk 0:02:53.1]}
7. c4 {[%clk 0:03:00.8]} 7... a5 {[%clk 0:02:50.8]} 8. Be3 {[%clk 0:02:54.9]}
8... a4 {[%clk 0:02:46.3]} 9. N3d2 {[%clk 0:02:52.2]} 9... Nc6 {[%clk 0:02:43]}
10. Nc3 {[%clk 0:02:39.4]} 10... a3 {[%clk 0:02:38.5]} 11. b3 {[%clk 0:02:39.6]}
11... O-O {[%clk 0:02:36.9]} 12. Bd3 {[%clk 0:02:28.8]} 12... Be6 {[%clk
0:02:35.5]} 13. O-O {[%clk 0:02:27.8]} 13... Nd7 {[%clk 0:02:35.1]} 14. Rc1
{[%clk 0:02:23.6]} 14... Nd4 {[%clk 0:02:30.4]} 15. b4 {[%clk 0:02:11]} 15...
Bg5 {[%clk 0:02:19.1]} 16. Bf2 {[%clk 0:02:09.7]} 16... g6 {[%clk 0:02:16.5]}
17. Rb1 {[%clk 0:01:56.1]} 17... f5 {[%clk 0:02:15.4]} 18. Nb3 {[%clk 0:01:56]}
18... Nc6 {[%clk 0:02:02.3]} 19. Nc1 {[%clk 0:01:37.7]} 19... Nb6 {[%clk
0:01:55.8]} 20. Nd5 {[%clk 0:01:28.1]} 20... Na4 {[%clk 0:01:48.9]} 21. Ne2
{[%clk 0:01:22.9]} 21... Bh6 {[%clk 0:01:36.1]} 22. Qb3 {[%clk 0:01:18.4]} 22...
Nb2 {[%clk 0:01:33.9]} 23. Bb6 {[%clk 0:01:05.7]} 23... Qd7 {[%clk 0:01:33.6]}
24. Nc7 {[%clk 0:01:05.3]} 24... Be3+ {[%clk 0:01:09.7]} 25. Bxe3 {[%clk
0:01:03.7]} 25... Qxc7 {[%clk 0:01:10.2]} 26. Nc3 {[%clk 0:00:46.6]} 26... Nxd3
{[%clk 0:00:34.2]} 27. Nb5 {[%clk 0:00:45.3]} 27... Qf7 {[%clk 0:00:34.4]} 28.
Nxd6 {[%clk 0:00:37.3]} 28... Qe7 {[%clk 0:00:34.5]} 29. Qxd3 {[%clk 0:00:37.1]}
29... Rfd8 {[%clk 0:00:34.7]} 30. c5 {[%clk 0:00:36.5]} 30... Bxa2 {[%clk
0:00:33.4]} 31. Ra1 {[%clk 0:00:29.9]} 31... Nxb4 {[%clk 0:00:23.4]} 32. Qc3
{[%clk 0:00:27.8]} 32... Ra4 {[%clk 0:00:19.6]} 33. exf5 {[%clk 0:00:21.5]}
33... Nd5 {[%clk 0:00:16.9]} 34. Qd2 {[%clk 0:00:18.5]} 34... Nxe3 {[%clk
0:00:17.2]} 35. Qxe3 {[%clk 0:00:19.4]} 35... Bd5 {[%clk 0:00:12.6]} 36. fxg6
{[%clk 0:00:17.9]} 36... a2 {[%clk 0:00:11]} 37. gxh7+ {[%clk 0:00:17.5]} 37...
Kh8 {[%clk 0:00:11.2]} 38. Rfe1 {[%clk 0:00:16.6]} 38... Rb4 {[%clk 0:00:08.5]}
39. Qc3 {[%clk 0:00:14.6]} 39... Rb3 {[%clk 0:00:08.2]} 40. Rxe5 {[%clk
0:00:10.1]} 40... Qxd6 {[%clk 0:00:04.2]} 41. Re8+ {[%clk 0:00:06.7]} 41... Kxh7
{[%clk 0:00:03.6]} 42. Qh8+ {[%clk 0:00:07.6]} 42... Kg6 {[%clk 0:00:04.1]} 43.
Rxd8 {[%clk 0:00:05.7]} 43... Rb1+ {[%clk 0:00:04]} 44. Kf2 {[%clk 0:00:06]}
44... Qxc5+ {[%clk 0:00:03.9]} 45. Kg3 {[%clk 0:00:06.3]} 45... Qc7+ {[%clk
0:00:04.4]} 46. Kh4 {[%clk 0:00:03.9]} 46... Qc4+ {[%clk 0:00:04.1]} 47. Kg3
{[%clk 0:00:04.1]} 47... Qc7+ {[%clk 0:00:04]} 48. f4 {[%clk 0:00:04.2]} 48...
Rb3+ {[%clk 0:00:02.3]} 49. Kg4 {[%clk 0:00:04.7]} 49... Be6+ {[%clk 0:00:02.5]}
50. Kh4 {[%clk 0:00:02.1]} 50... Qxf4+ {[%clk 0:00:02.8]} 0-1

[Event "Early-Titled-Tuesday-Blitz-April-16-2024"]
[Site "Chess.com"]
[Date "2024.04.16"]
[Round "1"]
[White "Rud_Makarian"]
[Black "Silvederione"]
[Result "1-0"]
[WhiteElo "3022"]
[BlackElo "2522"]
[TimeControl "180+1"]
[EndTime "8:08:10 PDT"]
[Termination "Rud_Makarian won on time"]

1. d4 {[%clk 0:02:58.5]} 1... Nf6 {[%clk 0:02:59.9]} 2. c4 {[%clk 0:02:59]} 2...
g6 {[%clk 0:03:00.2]} 3. Nf3 {[%clk 0:02:59.9]} 3... Bg7 {[%clk 0:03:00.7]} 4.
Nc3 {[%clk 0:03:00.8]} 4... O-O {[%clk 0:03:01.2]} 5. e4 {[%clk 0:03:01.7]} 5...
d6 {[%clk 0:03:01.9]} 6. Be2 {[%clk 0:03:02.6]} 6... Na6 {[%clk 0:03:02.4]} 7.
O-O {[%clk 0:03:03.2]} 7... e5 {[%clk 0:03:03.1]} 8. Be3 {[%clk 0:03:04.1]} 8...
exd4 {[%clk 0:03:02.3]} 9. Nxd4 {[%clk 0:03:04.9]} 9... Re8 {[%clk 0:03:02.6]}
10. f3 {[%clk 0:03:03.9]} 10... Nc5 {[%clk 0:03:03.2]} 11. Qd2 {[%clk
0:03:04.2]} 11... a5 {[%clk 0:03:03.3]} 12. Rad1 {[%clk 0:03:04.4]} 12... Bd7
{[%clk 0:02:59.1]} 13. Kh1 {[%clk 0:03:03]} 13... a4 {[%clk 0:02:56.2]} 14. Nd5
{[%clk 0:02:58.8]} 14... Nxd5 {[%clk 0:02:54.2]} 15. cxd5 {[%clk 0:02:59.5]}
15... h5 {[%clk 0:02:47.8]} 16. Rc1 {[%clk 0:02:52]} 16... b6 {[%clk 0:02:45.5]}
17. Rc2 {[%clk 0:02:20.8]} 17... Qe7 {[%clk 0:02:31]} 18. Nb5 {[%clk 0:02:01.3]}
18... Rac8 {[%clk 0:02:17.6]} 19. Bg5 {[%clk 0:01:55]} 19... f6 {[%clk
0:02:15.6]} 20. Be3 {[%clk 0:01:52.1]} 20... f5 {[%clk 0:02:15.7]} 21. Bg5
{[%clk 0:01:46.1]} 21... Qe5 {[%clk 0:02:11.6]} 22. Nc3 {[%clk 0:01:27.7]} 22...
fxe4 {[%clk 0:02:06.4]} 23. Nxe4 {[%clk 0:01:14.8]} 23... Nxe4 {[%clk
0:02:07.3]} 24. fxe4 {[%clk 0:01:15.7]} 24... Qxe4 {[%clk 0:02:07.5]} 25. Bd3
{[%clk 0:01:11.9]} 25... Qg4 {[%clk 0:01:49.9]} 26. h3 {[%clk 0:01:04.1]} 26...
Qg3 {[%clk 0:01:26.2]} 27. Bf4 {[%clk 0:00:47.4]} 27... Qh4 {[%clk 0:01:24.4]}
28. Bxg6 {[%clk 0:00:41.2]} 28... Rf8 {[%clk 0:01:12.6]} 29. Rcc1 {[%clk
0:00:41]} 29... Qf6 {[%clk 0:00:22.1]} 30. Bxh5 {[%clk 0:00:36.8]} 30... Qxb2
{[%clk 0:00:18.9]} 31. Rc2 {[%clk 0:00:26.7]} 31... Qd4 {[%clk 0:00:18.5]} 32.
Qxd4 {[%clk 0:00:22.8]} 32... Bxd4 {[%clk 0:00:19.4]} 33. Rf3 {[%clk 0:00:20.4]}
33... Bg7 {[%clk 0:00:17.9]} 34. Be3 {[%clk 0:00:16.9]} 34... Bf5 {[%clk
0:00:15.3]} 35. Rc4 {[%clk 0:00:15.3]} 35... Bd3 {[%clk 0:00:14.5]} 36. Rxa4
{[%clk 0:00:14.6]} 36... Ra8 {[%clk 0:00:12.4]} 37. Rxf8+ {[%clk 0:00:13.8]}
37... Rxf8 {[%clk 0:00:13.3]} 38. Ra7 {[%clk 0:00:14.2]} 38... Rf1+ {[%clk
0:00:11.9]} 39. Kh2 {[%clk 0:00:13.7]} 39... Be5+ {[%clk 0:00:12.4]} 40. g3
{[%clk 0:00:14.2]} 40... Be4 {[%clk 0:00:12.9]} 41. Bg1 {[%clk 0:00:08.1]} 41...
Rc1 {[%clk 0:00:08.6]} 42. h4 {[%clk 0:00:08.3]} 42... Rc2+ {[%clk 0:00:08.2]}
43. Kh3 {[%clk 0:00:09.2]} 43... Bf5+ {[%clk 0:00:07.7]} 44. Bg4 {[%clk
0:00:08.9]} 44... Be4 {[%clk 0:00:07.8]} 45. Be6+ {[%clk 0:00:09]} 45... Kg7
{[%clk 0:00:07.5]} 46. Be3 {[%clk 0:00:08.4]} 46... Bf3 {[%clk 0:00:04.9]} 47.
Bf4 {[%clk 0:00:04.8]} 47... Bf6 {[%clk 0:00:02.2]} 48. Bxd6 {[%clk 0:00:04.4]}
1-0

[Event "Early-Titled-Tuesday-Blitz-April-16-2024"]
[Site "Chess.com"]
[Date "2024.04.16"]
[Round "1"]
[White "Mikhail_Golubev"]
[Black "LegenDaDaDa"]
[Result "1-0"]
[WhiteElo "2609"]
[BlackElo "2284"]
[TimeControl "180+1"]
[EndTime "8:08:10 PDT"]
[Termination "Mikhail_Golubev won by resignation"]

1. e4 {[%clk 0:03:00.9]} 1... e5 {[%clk 0:02:55.4]} 2. Nf3 {[%clk 0:03:00.2]}
2... Nc6 {[%clk 0:02:50.7]} 3. Bc4 {[%clk 0:02:59.3]} 3... Bc5 {[%clk
0:02:49.6]} 4. c3 {[%clk 0:02:57.2]} 4... Nf6 {[%clk 0:02:45.5]} 5. d3 {[%clk
0:02:56.4]} 5... d6 {[%clk 0:02:42.1]} 6. Nbd2 {[%clk 0:02:51.2]} 6... O-O
{[%clk 0:02:38.9]} 7. O-O {[%clk 0:02:47.6]} 7... a6 {[%clk 0:02:35.7]} 8. Bb3
{[%clk 0:02:45.3]} 8... Ba7 {[%clk 0:02:30.6]} 9. h3 {[%clk 0:02:39.1]} 9... h6
{[%clk 0:02:30.2]} 10. Re1 {[%clk 0:02:34.4]} 10... Nh5 {[%clk 0:02:29]} 11. Nf1
{[%clk 0:02:30.9]} 11... Qf6 {[%clk 0:02:28.1]} 12. Ne3 {[%clk 0:02:07.1]} 12...
Ne7 {[%clk 0:02:25.5]} 13. d4 {[%clk 0:01:56.7]} 13... Ng6 {[%clk 0:02:23.6]}
14. Nd5 {[%clk 0:01:52]} 14... Qd8 {[%clk 0:02:22.4]} 15. Nxe5 {[%clk
0:01:46.5]} 15... dxe5 {[%clk 0:02:20.7]} 16. Qxh5 {[%clk 0:01:46.2]} 16... exd4
{[%clk 0:02:19.4]} 17. cxd4 {[%clk 0:01:08.8]} 17... Bxd4 {[%clk 0:02:16.4]} 18.
Nxc7 {[%clk 0:01:05.3]} 18... Qf6 {[%clk 0:02:14.2]} 19. Re2 {[%clk 0:00:57.8]}
19... Rb8 {[%clk 0:02:12.9]} 20. Nd5 {[%clk 0:00:55.5]} 20... Qd6 {[%clk
0:02:02.7]} 21. Rd2 {[%clk 0:00:35.2]} 21... Ba7 {[%clk 0:01:42.4]} 22. Qxg6
{[%clk 0:00:28]} 22... Qxg6 {[%clk 0:01:40.9]} 23. Ne7+ {[%clk 0:00:28.1]} 23...
Kh7 {[%clk 0:01:40.9]} 24. Nxg6 {[%clk 0:00:29]} 24... fxg6 {[%clk 0:01:41.6]}
25. Re2 {[%clk 0:00:27]} 25... Bd7 {[%clk 0:01:39]} 26. Be3 {[%clk 0:00:27]}
26... Bb5 {[%clk 0:01:38.1]} 27. Ree1 {[%clk 0:00:25.9]} 27... Bxe3 {[%clk
0:01:37]} 28. Rxe3 {[%clk 0:00:26.8]} 28... Rbe8 {[%clk 0:01:32.3]} 29. Rc1
{[%clk 0:00:24.7]} 29... Re7 {[%clk 0:01:27.8]} 30. e5 {[%clk 0:00:19.6]} 30...
Rfe8 {[%clk 0:01:21.5]} 31. e6 {[%clk 0:00:19.6]} 31... Bc6 {[%clk 0:01:17.8]}
32. Rd1 {[%clk 0:00:18.4]} 32... b5 {[%clk 0:01:15]} 33. f3 {[%clk 0:00:18]}
33... a5 {[%clk 0:01:11]} 34. Rd6 {[%clk 0:00:17.6]} 34... Ba8 {[%clk
0:01:10.1]} 35. a3 {[%clk 0:00:17.2]} 35... b4 {[%clk 0:01:09.7]} 36. axb4
{[%clk 0:00:16.7]} 36... axb4 {[%clk 0:01:10.6]} 37. Rb6 {[%clk 0:00:16.7]}
37... h5 {[%clk 0:01:02.4]} 38. Rxb4 {[%clk 0:00:16.3]} 38... Ra7 {[%clk
0:01:00.8]} 39. Kh2 {[%clk 0:00:13.6]} 39... g5 {[%clk 0:01:00.1]} 40. Rb5
{[%clk 0:00:11.9]} 40... Kh6 {[%clk 0:00:58.5]} 41. Ree5 {[%clk 0:00:11.6]}
41... Bc6 {[%clk 0:00:52.9]} 42. Rbc5 {[%clk 0:00:10.8]} 42... Ba4 {[%clk
0:00:53.1]} 43. Bxa4 {[%clk 0:00:09.3]} 43... Rxa4 {[%clk 0:00:54]} 44. Rxg5
{[%clk 0:00:07.7]} 44... Rxe6 {[%clk 0:00:53]} 45. Rxh5+ {[%clk 0:00:08]} 45...
Kg6 {[%clk 0:00:53.1]} 46. Rhg5+ {[%clk 0:00:08.3]} 46... Kf7 {[%clk 0:00:52.7]}
47. Rg4 {[%clk 0:00:07.5]} 47... Ra2 {[%clk 0:00:51.7]} 48. b4 {[%clk
0:00:06.8]} 48... Rb2 {[%clk 0:00:50.5]} 49. b5 {[%clk 0:00:06.7]} 49... Ree2
{[%clk 0:00:50.5]} 50. Rcg5 {[%clk 0:00:06.3]} 50... Kf6 {[%clk 0:00:48.3]} 51.
Rg6+ {[%clk 0:00:05.6]} 51... Ke5 {[%clk 0:00:45.5]} 52. Rxg7 {[%clk 0:00:06.5]}
52... Kd5 {[%clk 0:00:42.5]} 53. R7g5+ {[%clk 0:00:07.3]} 53... Kd6 {[%clk
0:00:41.3]} 54. h4 {[%clk 0:00:07.8]} 54... Ke6 {[%clk 0:00:40.4]} 55. h5 {[%clk
0:00:08.1]} 55... Rec2 {[%clk 0:00:40.1]} 56. h6 {[%clk 0:00:08.1]} 56... Rc7
{[%clk 0:00:40.5]} 57. Rg6+ {[%clk 0:00:07.6]} 57... Ke5 {[%clk 0:00:40.5]} 58.
R4g5+ {[%clk 0:00:07.9]} 58... Kd4 {[%clk 0:00:40.8]} 59. Rg7 {[%clk 0:00:07.3]}
59... Rc8 {[%clk 0:00:38.5]} 60. Rg8 {[%clk 0:00:07.3]} 60... Rc7 {[%clk
0:00:38.1]} 61. R5g7 {[%clk 0:00:07.5]} 61... Rcc2 {[%clk 0:00:38]} 62. h7
{[%clk 0:00:07.5]} 62... Rxb5 {[%clk 0:00:35.8]} 63. h8=Q {[%clk 0:00:06.9]}
63... Rcc5 {[%clk 0:00:34.9]} 64. Rg5+ {[%clk 0:00:06.1]} 64... Kc4 {[%clk
0:00:33.7]} 65. Rxc5+ {[%clk 0:00:07]} 1-0